[Event "*** Qualifier 1: Titled Tuesday 3|2 Blitz"]
[Site "Chess.com"]
[Date "2017.04.04"]
[Round "2"]
[White "biostatistician"]
[Black "ShimanovAlex"]
[Result "1-0"]
[WhiteElo "2467"]
[BlackElo "2615"]
[TimeControl "180+2"]
[EndTime "13:24:44 PDT"]
[Termination "biostatistician won by resignation"]

1. d4 {[%clk 0:03:02]} 1... Nf6 {[%clk 0:02:58.6]} 2. Nf3 {[%clk 0:03:03.4]}
2... d6 {[%clk 0:02:57.8]} 3. c4 {[%clk 0:03:04.7]} 3... g6 {[%clk 0:02:58.2]}
4. Nc3 {[%clk 0:03:06.6]} 4... Bg7 {[%clk 0:02:59.1]} 5. e4 {[%clk 0:03:07.8]}
5... O-O {[%clk 0:02:59.7]} 6. Be2 {[%clk 0:03:09.4]} 6... e5 {[%clk 0:03:00.1]}
7. dxe5 {[%clk 0:03:11.3]} 7... dxe5 {[%clk 0:03:01]} 8. Qxd8 {[%clk 0:03:13.2]}
8... Rxd8 {[%clk 0:03:01.8]} 9. Bg5 {[%clk 0:03:15.1]} 9... Na6 {[%clk
0:02:58.1]} 10. Nd5 {[%clk 0:03:11.5]} 10... Rd6 {[%clk 0:02:56.6]} 11. Bxf6
{[%clk 0:03:10.7]} 11... Bxf6 {[%clk 0:02:57.4]} 12. Nxf6+ {[%clk 0:03:07]}
12... Rxf6 {[%clk 0:02:57.5]} 13. Rd1 {[%clk 0:03:06.3]} 13... Bg4 {[%clk
0:02:51.9]} 14. Nxe5 {[%clk 0:03:06.7]} 14... Bxe2 {[%clk 0:02:52.7]} 15. Kxe2
{[%clk 0:03:08.4]} 15... Re8 {[%clk 0:02:52.6]} 16. Nd7 {[%clk 0:03:09.3]} 16...
Rc6 {[%clk 0:02:23.5]} 17. Rd4 {[%clk 0:02:52.8]} 17... Kg7 {[%clk 0:02:22.7]}
18. a3 {[%clk 0:02:44.2]} 18... Rce6 {[%clk 0:02:11.5]} 19. f3 {[%clk
0:02:39.7]} 19... c5 {[%clk 0:02:07]} 20. Rd3 {[%clk 0:02:32.9]} 20... b6 {[%clk
0:02:06]} 21. Kf2 {[%clk 0:02:17.2]} 21... Nc7 {[%clk 0:01:50.1]} 22. Rhd1
{[%clk 0:02:15.4]} 22... f5 {[%clk 0:01:37.6]} 23. e5 {[%clk 0:02:15.8]} 23...
f4 {[%clk 0:01:38.2]} 24. g3 {[%clk 0:01:51]} 24... fxg3+ {[%clk 0:01:10.4]} 25.
hxg3 {[%clk 0:01:52.9]} 25... R6e7 {[%clk 0:01:11.5]} 26. Nf6 {[%clk 0:01:36.9]}
26... Rf8 {[%clk 0:01:10.3]} 27. Rd7 {[%clk 0:01:32.5]} 27... Rff7 {[%clk
0:01:08.9]} 28. f4 {[%clk 0:01:30.4]} 28... Ne6 {[%clk 0:01:04.2]} 29. Ke3
{[%clk 0:01:24.1]} 29... Nd4 {[%clk 0:01:02.7]} 30. Rxe7 {[%clk 0:01:21.6]}
30... Rxe7 {[%clk 0:01:04]} 31. Ke4 {[%clk 0:01:21.6]} 31... h5 {[%clk
0:01:03.7]} 32. g4 {[%clk 0:01:15.6]} 32... hxg4 {[%clk 0:01:03.6]} 33. Nxg4
{[%clk 0:01:17.5]} 33... Re8 {[%clk 0:01:00.2]} 34. Rh1 {[%clk 0:01:15.1]} 34...
Ne6 {[%clk 0:00:35.4]} 35. Nf6 {[%clk 0:01:09.7]} 35... Re7 {[%clk 0:00:33.1]}
36. Rh7+ {[%clk 0:01:09.3]} 36... Kf8 {[%clk 0:00:34.2]} 37. Rxe7 {[%clk
0:01:06.5]} 37... Kxe7 {[%clk 0:00:35.4]} 38. Nd5+ {[%clk 0:01:05.5]} 38... Kd7
{[%clk 0:00:35.8]} 39. f5 {[%clk 0:00:53.4]} 39... gxf5+ {[%clk 0:00:36.7]} 40.
Kxf5 {[%clk 0:00:55.3]} 40... Nd4+ {[%clk 0:00:38]} 41. Kf6 {[%clk 0:00:55.8]}
41... Ne6 {[%clk 0:00:39.9]} 42. b4 {[%clk 0:00:51.3]} 42... cxb4 {[%clk
0:00:39.2]} 43. axb4 {[%clk 0:00:53.2]} 43... Nd4 {[%clk 0:00:39.3]} 44. b5
{[%clk 0:00:48.4]} 44... Ne6 {[%clk 0:00:37.5]} 45. Kf7 {[%clk 0:00:40]} 45...
Ng5+ {[%clk 0:00:38.1]} 46. Kf6 {[%clk 0:00:40.3]} 46... Ne6 {[%clk 0:00:39.2]}
47. Kf5 {[%clk 0:00:29.8]} 47... Nd4+ {[%clk 0:00:39.5]} 48. Ke4 {[%clk
0:00:28.5]} 48... Ne6 {[%clk 0:00:40]} 49. Nf4 {[%clk 0:00:29.6]} 49... Ng7
{[%clk 0:00:35.3]} 50. Kd5 {[%clk 0:00:30]} 50... Nf5 {[%clk 0:00:36.3]} 51. e6+
{[%clk 0:00:28.5]} 51... Ke7 {[%clk 0:00:37.5]} 52. Ke5 {[%clk 0:00:24.1]} 52...
Ne3 {[%clk 0:00:38.6]} 53. Nd5+ {[%clk 0:00:24.4]} 53... Ke8 {[%clk 0:00:39.8]}
54. Nxe3 {[%clk 0:00:24.7]} 1-0

[Event "*** Qualifier 1: Titled Tuesday 3|2 Blitz"]
[Site "Chess.com"]
[Date "2017.04.04"]
[Round "2"]
[White "rupeshjswl7"]
[Black "proxy6"]
[Result "0-1"]
[WhiteElo "2075"]
[BlackElo "2221"]
[TimeControl "180+2"]
[EndTime "13:24:47 PDT"]
[Termination "proxy6 won by resignation"]

1. d4 {[%clk 0:02:58.5]} 1... Nf6 {[%clk 0:03:00.5]} 2. Nf3 {[%clk 0:02:59.5]}
2... e6 {[%clk 0:03:01.3]} 3. Bf4 {[%clk 0:03:00.7]} 3... d5 {[%clk 0:03:01]} 4.
e3 {[%clk 0:03:01.9]} 4... c5 {[%clk 0:03:00.9]} 5. c3 {[%clk 0:03:02.7]} 5...
Nc6 {[%clk 0:03:02.2]} 6. Bd3 {[%clk 0:03:03.6]} 6... Bd6 {[%clk 0:03:02.4]} 7.
Bg3 {[%clk 0:03:04.5]} 7... O-O {[%clk 0:03:02.7]} 8. Nbd2 {[%clk 0:03:05.6]}
8... c4 {[%clk 0:02:59.9]} 9. Bc2 {[%clk 0:03:06.3]} 9... b5 {[%clk 0:03:01.3]}
10. a3 {[%clk 0:03:05.1]} 10... a5 {[%clk 0:02:59.5]} 11. O-O {[%clk 0:03:05.9]}
11... Rb8 {[%clk 0:02:59.5]} 12. e4 {[%clk 0:03:01.6]} 12... Bxg3 {[%clk
0:02:52]} 13. hxg3 {[%clk 0:03:02]} 13... dxe4 {[%clk 0:02:52]} 14. Nxe4 {[%clk
0:03:02.4]} 14... g6 {[%clk 0:02:41.3]} 15. Nxf6+ {[%clk 0:02:50.5]} 15... Qxf6
{[%clk 0:02:42]} 16. Qe2 {[%clk 0:02:51.9]} 16... Bb7 {[%clk 0:02:38.7]} 17.
Rfe1 {[%clk 0:02:51.6]} 17... Rfe8 {[%clk 0:02:30.1]} 18. Be4 {[%clk 0:02:48.9]}
18... Ne7 {[%clk 0:02:28.9]} 19. Bxb7 {[%clk 0:02:48.5]} 19... Rxb7 {[%clk
0:02:30.8]} 20. Ne5 {[%clk 0:02:46.5]} 20... Nd5 {[%clk 0:02:29.5]} 21. Rac1
{[%clk 0:02:35.4]} 21... Qg7 {[%clk 0:02:23.1]} 22. Qe4 {[%clk 0:02:30.6]} 22...
f6 {[%clk 0:02:12.9]} 23. Nc6 {[%clk 0:02:30]} 23... Qc7 {[%clk 0:02:08.8]} 24.
Qxd5 {[%clk 0:02:18.8]} 24... exd5 {[%clk 0:02:10.7]} 25. Rxe8+ {[%clk
0:02:19.8]} 25... Kf7 {[%clk 0:02:10.3]} 26. Re7+ {[%clk 0:02:10.5]} 26... Qxe7
{[%clk 0:02:10.9]} 27. Nxe7 {[%clk 0:02:11.7]} 27... Rxe7 {[%clk 0:02:12]} 28.
Kf1 {[%clk 0:02:12.3]} 28... Rb7 {[%clk 0:02:06]} 29. Re1 {[%clk 0:02:02.5]}
29... b4 {[%clk 0:02:03.3]} 30. axb4 {[%clk 0:02:03.1]} 30... axb4 {[%clk
0:02:05.2]} 31. Re3 {[%clk 0:01:39.8]} 31... bxc3 {[%clk 0:02:03.9]} 32. bxc3
{[%clk 0:01:40.8]} 32... Rb2 {[%clk 0:02:04.9]} 33. g4 {[%clk 0:01:40.6]} 33...
Rc2 {[%clk 0:01:57.5]} 34. g3 {[%clk 0:01:40.7]} 34... h6 {[%clk 0:01:39.1]} 35.
Kg2 {[%clk 0:01:41.5]} 35... Rc1 {[%clk 0:01:38.8]} 36. Kf3 {[%clk 0:01:40.4]}
36... g5 {[%clk 0:01:37.5]} 37. Kg2 {[%clk 0:01:40.8]} 37... Kg6 {[%clk
0:01:37.5]} 38. Kf3 {[%clk 0:01:39.4]} 38... Rc2 {[%clk 0:01:29.2]} 39. Kg2
{[%clk 0:01:40.1]} 39... Rd2 {[%clk 0:01:28.3]} 40. Kf3 {[%clk 0:01:40.3]} 40...
h5 {[%clk 0:01:23.4]} 41. gxh5+ {[%clk 0:01:38.6]} 41... Kxh5 {[%clk 0:01:25.3]}
42. Kg2 {[%clk 0:01:32]} 42... Kg4 {[%clk 0:01:23.6]} 43. Re6 {[%clk 0:00:54.8]}
43... Kf5 {[%clk 0:00:45.7]} 44. Rd6 {[%clk 0:00:48.6]} 44... Ke4 {[%clk
0:00:46.9]} 45. Re6+ {[%clk 0:00:49.6]} 45... Kd3 {[%clk 0:00:47.4]} 46. Re3+
{[%clk 0:00:36.7]} 46... Kc2 {[%clk 0:00:48.4]} 47. Rf3 {[%clk 0:00:38.1]} 47...
Rd3 {[%clk 0:00:47]} 48. Rxf6 {[%clk 0:00:39.4]} 48... Kxc3 {[%clk 0:00:47.4]}
49. f4 {[%clk 0:00:33.9]} 49... gxf4 {[%clk 0:00:47.4]} 50. g4 {[%clk
0:00:34.5]} 50... Rg3+ {[%clk 0:00:47.1]} 51. Kf2 {[%clk 0:00:35.3]} 51... Rxg4
{[%clk 0:00:48.4]} 52. Kf3 {[%clk 0:00:36.8]} 52... Rh4 {[%clk 0:00:47.8]} 53.
Rf5 {[%clk 0:00:34.7]} 53... Kxd4 {[%clk 0:00:48.8]} 54. Rf8 {[%clk 0:00:35.4]}
54... c3 {[%clk 0:00:49.6]} 55. Rc8 {[%clk 0:00:36.5]} 55... Kd3 {[%clk
0:00:50.2]} 56. Rh8 {[%clk 0:00:35.9]} 56... Rxh8 {[%clk 0:00:48.9]} 0-1

[Event "*** Qualifier 1: Titled Tuesday 3|2 Blitz"]
[Site "Chess.com"]
[Date "2017.04.04"]
[Round "2"]
[White "Fandorine"]
[Black "Schemato"]
[Result "1-0"]
[WhiteElo "2634"]
[BlackElo "2248"]
[TimeControl "180+2"]
[EndTime "13:24:48 PDT"]
[Termination "Fandorine won by resignation"]

1. e4 {[%clk 0:03:02]} 1... c5 {[%clk 0:02:57]} 2. Nf3 {[%clk 0:03:03]} 2... e6
{[%clk 0:02:57.6]} 3. d4 {[%clk 0:03:02.7]} 3... cxd4 {[%clk 0:02:58]} 4. Nxd4
{[%clk 0:03:04.6]} 4... Nc6 {[%clk 0:02:59.5]} 5. Nc3 {[%clk 0:03:04.5]} 5...
Qc7 {[%clk 0:03:00.8]} 6. g3 {[%clk 0:03:02.8]} 6... a6 {[%clk 0:02:59.9]} 7.
Bg2 {[%clk 0:03:02.6]} 7... d6 {[%clk 0:03:01.3]} 8. O-O {[%clk 0:03:01.3]} 8...
Bd7 {[%clk 0:03:02.6]} 9. Re1 {[%clk 0:02:57]} 9... Be7 {[%clk 0:03:03]} 10.
Nce2 {[%clk 0:02:50.7]} 10... Nf6 {[%clk 0:03:01.9]} 11. b3 {[%clk 0:02:50.4]}
11... O-O {[%clk 0:02:59.1]} 12. c4 {[%clk 0:02:48.7]} 12... Rab8 {[%clk
0:02:56.1]} 13. Bb2 {[%clk 0:02:48.5]} 13... b5 {[%clk 0:02:55.7]} 14. Rc1
{[%clk 0:02:47.1]} 14... Nxd4 {[%clk 0:02:30.7]} 15. Nxd4 {[%clk 0:02:41.7]}
15... Qb6 {[%clk 0:02:23.6]} 16. cxb5 {[%clk 0:02:14.6]} 16... axb5 {[%clk
0:02:22.5]} 17. e5 {[%clk 0:01:56.4]} 17... dxe5 {[%clk 0:02:17.6]} 18. Rxe5
{[%clk 0:01:58.3]} 18... Rfd8 {[%clk 0:02:11.3]} 19. Qe2 {[%clk 0:01:53.9]}
19... b4 {[%clk 0:02:07.8]} 20. h3 {[%clk 0:01:44.9]} 20... Rbc8 {[%clk
0:01:59.9]} 21. Rxc8 {[%clk 0:01:14]} 21... Rxc8 {[%clk 0:02:00.3]} 22. Nf5
{[%clk 0:01:15.2]} 22... Bf8 {[%clk 0:01:58.2]} 23. Ne3 {[%clk 0:01:14.5]} 23...
Bc6 {[%clk 0:01:51.1]} 24. Nc4 {[%clk 0:01:07.5]} 24... Qc7 {[%clk 0:01:52]} 25.
Rg5 {[%clk 0:00:52.9]} 25... Bxg2 {[%clk 0:01:37.9]} 26. Kxg2 {[%clk 0:00:39.1]}
26... Nd5 {[%clk 0:01:26.6]} 27. Qg4 {[%clk 0:00:30]} 27... Nc3 {[%clk
0:01:24.2]} 28. Ra5 {[%clk 0:00:19.7]} 28... g6 {[%clk 0:01:17]} 29. Qf3 {[%clk
0:00:20.7]} 29... Bg7 {[%clk 0:01:04.2]} 30. a4 {[%clk 0:00:14.2]} 30... Nd5
{[%clk 0:00:41.3]} 31. Bxg7 {[%clk 0:00:14.4]} 31... Kxg7 {[%clk 0:00:43.2]} 32.
Rb5 {[%clk 0:00:14]} 32... Rb8 {[%clk 0:00:33.5]} 33. Rxb8 {[%clk 0:00:10]}
33... Qxb8 {[%clk 0:00:35.4]} 34. Qe4 {[%clk 0:00:11.2]} 34... Kg8 {[%clk
0:00:26.3]} 35. Kh2 {[%clk 0:00:12.2]} 35... Qa7 {[%clk 0:00:25.3]} 36. Kg2
{[%clk 0:00:13.2]} 36... Qc5 {[%clk 0:00:23.9]} 37. a5 {[%clk 0:00:11.7]} 37...
Nc3 {[%clk 0:00:20.8]} 38. Qa8+ {[%clk 0:00:11.8]} 38... Kg7 {[%clk 0:00:21.5]}
39. Qf3 {[%clk 0:00:12.8]} 39... Nb5 {[%clk 0:00:17.4]} 40. a6 {[%clk
0:00:12.4]} 40... Qa7 {[%clk 0:00:13.8]} 41. Qb7 {[%clk 0:00:12.4]} 41... Qc5
{[%clk 0:00:10.4]} 42. Qe4 {[%clk 0:00:10.9]} 42... Qa7 {[%clk 0:00:10.7]} 43.
Qe5+ {[%clk 0:00:11.8]} 43... Kg8 {[%clk 0:00:10.9]} 44. Qxb5 {[%clk 0:00:12.4]}
44... Qa8+ {[%clk 0:00:10.8]} 45. Qb7 {[%clk 0:00:13.2]} 1-0

[Event "*** Qualifier 1: Titled Tuesday 3|2 Blitz"]
[Site "Chess.com"]
[Date "2017.04.04"]
[Round "2"]
[White "amaidel"]
[Black "MITerryble"]
[Result "0-1"]
[WhiteElo "2480"]
[BlackElo "2759"]
[TimeControl "180+2"]
[EndTime "13:24:54 PDT"]
[Termination "MITerryble won by checkmate"]

1. e4 {[%clk 0:02:59.8]} 1... e6 {[%clk 0:03:01.1]} 2. d4 {[%clk 0:02:59.7]}
2... d5 {[%clk 0:03:02]} 3. exd5 {[%clk 0:03:00.9]} 3... exd5 {[%clk 0:03:03]}
4. Nf3 {[%clk 0:03:02.6]} 4... Nf6 {[%clk 0:03:01.9]} 5. Bd3 {[%clk 0:03:03.5]}
5... Bd6 {[%clk 0:03:02.4]} 6. O-O {[%clk 0:03:04.4]} 6... O-O {[%clk
0:03:02.8]} 7. c4 {[%clk 0:03:04.7]} 7... dxc4 {[%clk 0:03:01]} 8. Bxc4 {[%clk
0:03:06.6]} 8... Bg4 {[%clk 0:02:59.3]} 9. Nc3 {[%clk 0:03:06.9]} 9... Nc6
{[%clk 0:02:59.5]} 10. Be3 {[%clk 0:03:06.6]} 10... Qd7 {[%clk 0:02:47.1]} 11.
d5 {[%clk 0:02:58.9]} 11... Bxf3 {[%clk 0:02:40.9]} 12. Qxf3 {[%clk 0:02:58.6]}
12... Ne5 {[%clk 0:02:42]} 13. Qe2 {[%clk 0:02:59.7]} 13... Nxc4 {[%clk
0:02:41.5]} 14. Qxc4 {[%clk 0:03:00.2]} 14... Rfe8 {[%clk 0:02:36.3]} 15. Rad1
{[%clk 0:02:53.3]} 15... Rxe3 {[%clk 0:01:59.9]} 16. fxe3 {[%clk 0:02:51.9]}
16... Ng4 {[%clk 0:02:01]} 17. Qd4 {[%clk 0:02:26.4]} 17... Bxh2+ {[%clk
0:01:55.6]} 18. Kh1 {[%clk 0:02:27]} 18... Be5 {[%clk 0:01:57.5]} 19. Qe4 {[%clk
0:02:21.4]} 19... Re8 {[%clk 0:01:51.8]} 20. Rf5 {[%clk 0:01:32.6]} 20... g6
{[%clk 0:01:48.6]} 21. Qxg4 {[%clk 0:01:24.1]} 21... Qxf5 {[%clk 0:01:49.4]} 22.
Qxf5 {[%clk 0:01:24.7]} 22... gxf5 {[%clk 0:01:51.3]} 23. Rd3 {[%clk 0:01:21.4]}
23... f4 {[%clk 0:01:44.9]} 24. exf4 {[%clk 0:01:16]} 24... Bxf4 {[%clk
0:01:46.8]} 25. g3 {[%clk 0:01:17.2]} 25... Re1+ {[%clk 0:01:40.3]} 26. Kg2
{[%clk 0:01:17.5]} 26... Be5 {[%clk 0:01:38.2]} 27. Kf3 {[%clk 0:01:13.4]} 27...
f5 {[%clk 0:01:18.1]} 28. b3 {[%clk 0:01:13.8]} 28... Kf7 {[%clk 0:01:13.4]} 29.
Ne2 {[%clk 0:01:13.5]} 29... Ke7 {[%clk 0:01:03.9]} 30. Nd4 {[%clk 0:00:48.7]}
30... Kf6 {[%clk 0:00:51.2]} 31. Ne6 {[%clk 0:00:44.4]} 31... b5 {[%clk
0:00:27.1]} 32. Nd8 {[%clk 0:00:41]} 32... a6 {[%clk 0:00:19.2]} 33. Nc6 {[%clk
0:00:41.6]} 33... h5 {[%clk 0:00:20.2]} 34. a4 {[%clk 0:00:37.6]} 34... bxa4
{[%clk 0:00:20.7]} 35. bxa4 {[%clk 0:00:39.5]} 35... Ra1 {[%clk 0:00:22]} 36. a5
{[%clk 0:00:39.8]} 36... Bd6 {[%clk 0:00:23.2]} 37. Kg2 {[%clk 0:00:38.4]} 37...
Kg5 {[%clk 0:00:23.1]} 38. Kf3 {[%clk 0:00:39.1]} 38... h4 {[%clk 0:00:20.6]}
39. gxh4+ {[%clk 0:00:39.4]} 39... Kxh4 {[%clk 0:00:22.5]} 40. Nd4 {[%clk
0:00:36.6]} 40... Kg5 {[%clk 0:00:22.8]} 41. Nc6 {[%clk 0:00:37.1]} 41... Rg1
{[%clk 0:00:20.7]} 42. Rd2 {[%clk 0:00:34.2]} 42... Rg3+ {[%clk 0:00:20.5]} 43.
Kf2 {[%clk 0:00:35]} 43... Ra3 {[%clk 0:00:22.4]} 44. Re2 {[%clk 0:00:29.3]}
44... f4 {[%clk 0:00:23.2]} 45. Re8 {[%clk 0:00:29.1]} 45... Bc5+ {[%clk
0:00:24.2]} 46. Kf1 {[%clk 0:00:29.2]} 46... f3 {[%clk 0:00:23.8]} 47. Rf8
{[%clk 0:00:19.7]} 47... Ra1# {[%clk 0:00:23.5]} 0-1

[Event "*** Qualifier 1: Titled Tuesday 3|2 Blitz"]
[Site "Chess.com"]
[Date "2017.04.04"]
[Round "2"]
[White "biveklama"]
[Black "peteseeger"]
[Result "1/2-1/2"]
[WhiteElo "2194"]
[BlackElo "2124"]
[TimeControl "180+2"]
[EndTime "13:25:00 PDT"]
[Termination "Game drawn by repetition"]

1. e4 {[%clk 0:03:00]} 1... c5 {[%clk 0:02:59.1]} 2. Nf3 {[%clk 0:03:00.7]} 2...
e6 {[%clk 0:02:59.5]} 3. g3 {[%clk 0:03:00.6]} 3... Nc6 {[%clk 0:02:55.3]} 4.
Bg2 {[%clk 0:03:01.3]} 4... Nf6 {[%clk 0:02:56]} 5. Qe2 {[%clk 0:02:59.4]} 5...
Be7 {[%clk 0:02:56.5]} 6. O-O {[%clk 0:03:00.5]} 6... d6 {[%clk 0:02:56.7]} 7.
c3 {[%clk 0:03:01.2]} 7... O-O {[%clk 0:02:56.3]} 8. d4 {[%clk 0:03:02]} 8...
cxd4 {[%clk 0:02:57.2]} 9. cxd4 {[%clk 0:03:02.9]} 9... d5 {[%clk 0:02:58.4]}
10. e5 {[%clk 0:02:56.4]} 10... Ne4 {[%clk 0:02:58.9]} 11. Nbd2 {[%clk
0:02:55.6]} 11... Nxd2 {[%clk 0:02:56.5]} 12. Bxd2 {[%clk 0:02:56.3]} 12... Bd7
{[%clk 0:02:58]} 13. h4 {[%clk 0:02:51.7]} 13... Rc8 {[%clk 0:02:39]} 14. a3
{[%clk 0:02:50.6]} 14... Na5 {[%clk 0:02:31.2]} 15. Qd3 {[%clk 0:02:48.4]} 15...
Nc4 {[%clk 0:02:19.1]} 16. Bc3 {[%clk 0:02:09.5]} 16... Bb5 {[%clk 0:02:13.8]}
17. Qb1 {[%clk 0:02:09.5]} 17... Qd7 {[%clk 0:02:00.2]} 18. Rc1 {[%clk
0:02:01.6]} 18... Rc7 {[%clk 0:01:54.4]} 19. a4 {[%clk 0:01:40.7]} 19... Ba6
{[%clk 0:01:44.4]} 20. b3 {[%clk 0:01:27.2]} 20... Nb6 {[%clk 0:01:33]} 21. a5
{[%clk 0:01:19.6]} 21... Nc8 {[%clk 0:01:28.8]} 22. Bd2 {[%clk 0:01:14.7]} 22...
Bb5 {[%clk 0:01:09.5]} 23. Bg5 {[%clk 0:00:57.4]} 23... h6 {[%clk 0:01:04.1]}
24. Bd2 {[%clk 0:00:54.6]} 24... f5 {[%clk 0:00:58.7]} 25. exf6 {[%clk
0:00:51.4]} 25... Bxf6 {[%clk 0:00:59.2]} 26. Re1 {[%clk 0:00:49.1]} 26... Nd6
{[%clk 0:00:58.1]} 27. Bf4 {[%clk 0:00:42.1]} 27... Rc6 {[%clk 0:00:42.2]} 28.
Qg6 {[%clk 0:00:38]} 28... Ne4 {[%clk 0:00:35.4]} 29. Bxh6 {[%clk 0:00:34.9]}
29... Qf7 {[%clk 0:00:24.8]} 30. Qg4 {[%clk 0:00:31.4]} 30... Rc2 {[%clk
0:00:16.9]} 31. Be3 {[%clk 0:00:29.5]} 31... Bd7 {[%clk 0:00:15.3]} 32. Qf4
{[%clk 0:00:18.7]} 32... Qe7 {[%clk 0:00:14.1]} 33. Rac1 {[%clk 0:00:15]} 33...
Rxc1 {[%clk 0:00:12.6]} 34. Rxc1 {[%clk 0:00:15.3]} 34... Bxd4 {[%clk
0:00:13.2]} 35. Qc7 {[%clk 0:00:13.5]} 35... Bxe3 {[%clk 0:00:12.7]} 36. fxe3
{[%clk 0:00:14.3]} 36... Qf7 {[%clk 0:00:09.3]} 37. Rf1 {[%clk 0:00:12]} 37...
Bb5 {[%clk 0:00:04.9]} 38. Qxf7+ {[%clk 0:00:08.9]} 38... Rxf7 {[%clk 0:00:06]}
39. Rc1 {[%clk 0:00:10.2]} 39... Nxg3 {[%clk 0:00:06.7]} 40. Rc8+ {[%clk
0:00:10.4]} 40... Rf8 {[%clk 0:00:07.4]} 41. Rc7 {[%clk 0:00:11.3]} 41... Rf7
{[%clk 0:00:08.6]} 42. Rc8+ {[%clk 0:00:10.9]} 42... Rf8 {[%clk 0:00:09.2]} 43.
Rc7 {[%clk 0:00:12.2]} 43... Rf7 {[%clk 0:00:10.4]} 44. Rc8+ {[%clk 0:00:13.1]}
44... Rf8 {[%clk 0:00:11.3]} 45. Rc7 {[%clk 0:00:14.4]} 45... Rf7 {[%clk
0:00:12]} 46. Rc8+ {[%clk 0:00:15.3]} 46... Rf8 {[%clk 0:00:12]} 1/2-1/2

[Event "*** Qualifier 1: Titled Tuesday 3|2 Blitz"]
[Site "Chess.com"]
[Date "2017.04.04"]
[Round "2"]
[White "Alexander_Donchenko"]
[Black "GameOverBro"]
[Result "1-0"]
[WhiteElo "2580"]
[BlackElo "2242"]
[TimeControl "180+2"]
[EndTime "13:25:06 PDT"]
[Termination "Alexander_Donchenko won by resignation"]

1. d4 {[%clk 0:03:02]} 1... Nf6 {[%clk 0:03:00.6]} 2. c4 {[%clk 0:03:01.9]} 2...
d6 {[%clk 0:03:01.8]} 3. Nf3 {[%clk 0:03:02.7]} 3... Nbd7 {[%clk 0:03:02.4]} 4.
g3 {[%clk 0:03:03.7]} 4... e5 {[%clk 0:03:03.5]} 5. Bg2 {[%clk 0:03:05.2]} 5...
Be7 {[%clk 0:03:04.4]} 6. O-O {[%clk 0:03:06.4]} 6... O-O {[%clk 0:03:05.9]} 7.
Nc3 {[%clk 0:03:08.1]} 7... c6 {[%clk 0:03:06.5]} 8. e4 {[%clk 0:03:09.7]} 8...
a6 {[%clk 0:03:05.1]} 9. Re1 {[%clk 0:03:07.7]} 9... b5 {[%clk 0:03:06]} 10. c5
{[%clk 0:03:08.8]} 10... exd4 {[%clk 0:02:52.1]} 11. cxd6 {[%clk 0:03:09.5]}
11... Bxd6 {[%clk 0:02:52.7]} 12. Nxd4 {[%clk 0:03:09.9]} 12... Ne5 {[%clk
0:02:39.4]} 13. f4 {[%clk 0:03:09.1]} 13... Bg4 {[%clk 0:02:39.1]} 14. Nce2
{[%clk 0:03:01.3]} 14... Qb6 {[%clk 0:01:58.5]} 15. fxe5 {[%clk 0:02:31.8]}
15... Bxe5 {[%clk 0:01:47.3]} 16. Be3 {[%clk 0:02:32.5]} 16... Rad8 {[%clk
0:01:39.4]} 17. Nf5 {[%clk 0:02:33.7]} 17... Rxd1 {[%clk 0:01:35.2]} 18. Bxb6
{[%clk 0:02:34]} 18... Rxa1 {[%clk 0:01:34]} 19. Rxa1 {[%clk 0:02:34]} 19...
Bxe2 {[%clk 0:01:35]} 20. Re1 {[%clk 0:02:28.5]} 20... Bc4 {[%clk 0:01:29.7]}
21. b3 {[%clk 0:02:28.6]} 21... Be6 {[%clk 0:01:28.2]} 22. Ne7+ {[%clk
0:02:29.7]} 22... Kh8 {[%clk 0:01:29.7]} 23. Nxc6 {[%clk 0:02:31.6]} 23... Bb2
{[%clk 0:01:26.9]} 24. e5 {[%clk 0:02:27.8]} 24... Nd5 {[%clk 0:01:24.9]} 25.
Bd4 {[%clk 0:02:28.8]} 25... Ba3 {[%clk 0:01:19.2]} 26. Rd1 {[%clk 0:02:12.8]}
26... Rc8 {[%clk 0:01:18.9]} 27. Bxd5 {[%clk 0:02:13.5]} 27... Bxd5 {[%clk
0:01:18.2]} 28. Na7 {[%clk 0:01:54.4]} 28... Bf3 {[%clk 0:00:38.9]} 29. Rf1
{[%clk 0:01:53.3]} 29... Rd8 {[%clk 0:00:33.2]} 30. Rxf3 {[%clk 0:01:51.3]}
30... Rxd4 {[%clk 0:00:34]} 31. Rxf7 {[%clk 0:01:49.6]} 31... Kg8 {[%clk
0:00:35.1]} 32. e6 {[%clk 0:01:49.5]} 32... Rd1+ {[%clk 0:00:34.3]} 33. Kg2
{[%clk 0:01:49.6]} 33... Re1 {[%clk 0:00:30.3]} 34. Rf2 {[%clk 0:01:29.7]} 34...
Rxe6 {[%clk 0:00:30.5]} 35. Rc2 {[%clk 0:01:30.6]} 35... h5 {[%clk 0:00:30.7]}
36. Nc6 {[%clk 0:01:30.3]} 36... Kh7 {[%clk 0:00:30.4]} 37. Nd4 {[%clk
0:01:31.3]} 37... Rf6 {[%clk 0:00:31.5]} 38. Rc6 {[%clk 0:01:30.1]} 38... Rxc6
{[%clk 0:00:31.4]} 39. Nxc6 {[%clk 0:01:32]} 39... Kg6 {[%clk 0:00:32.1]} 40.
Kf3 {[%clk 0:01:32.2]} 40... Kf5 {[%clk 0:00:33.2]} 41. Nb8 {[%clk 0:01:27.2]}
41... a5 {[%clk 0:00:33.9]} 42. Nc6 {[%clk 0:01:28.2]} 42... a4 {[%clk
0:00:34.7]} 43. Nd4+ {[%clk 0:01:29.2]} 43... Kg5 {[%clk 0:00:32.3]} 44. Nxb5
{[%clk 0:01:31.1]} 44... axb3 {[%clk 0:00:34.2]} 45. axb3 {[%clk 0:01:19.3]}
45... Bb4 {[%clk 0:00:35.5]} 46. h3 {[%clk 0:01:16]} 46... Kf5 {[%clk
0:00:36.2]} 47. Nd4+ {[%clk 0:01:17.2]} 47... Kf6 {[%clk 0:00:35.6]} 48. Nc6
{[%clk 0:01:18.2]} 48... Bc5 {[%clk 0:00:34.8]} 49. Ke4 {[%clk 0:01:18.8]} 49...
g5 {[%clk 0:00:35.4]} 50. b4 {[%clk 0:01:19]} 50... Bd6 {[%clk 0:00:36.2]} 51.
g4 {[%clk 0:01:19.9]} 51... hxg4 {[%clk 0:00:37.6]} 52. hxg4 {[%clk 0:01:21.8]}
52... Ke6 {[%clk 0:00:39.2]} 53. b5 {[%clk 0:01:22.3]} 53... Bc5 {[%clk
0:00:39.8]} 54. Nd4+ {[%clk 0:01:21.9]} 54... Kd6 {[%clk 0:00:40]} 55. Nf3
{[%clk 0:01:19.6]} 55... Kc7 {[%clk 0:00:40.3]} 56. Kd5 {[%clk 0:01:20.4]} 56...
Kb6 {[%clk 0:00:41.7]} 57. Kc4 {[%clk 0:01:21.7]} 57... Be3 {[%clk 0:00:43]} 58.
Ne5 {[%clk 0:01:22]} 58... Bf4 {[%clk 0:00:44.2]} 59. Nd7+ {[%clk 0:01:22]}
59... Kc7 {[%clk 0:00:45.2]} 60. Nf6 {[%clk 0:01:23.2]} 60... Kb7 {[%clk
0:00:45.7]} 61. Nd5 {[%clk 0:01:23.6]} 61... Bg3 {[%clk 0:00:46.7]} 62. Kd4
{[%clk 0:01:19.7]} 62... Bf2+ {[%clk 0:00:48.6]} 63. Ke5 {[%clk 0:01:20.6]}
63... Be1 {[%clk 0:00:47]} 64. Kd6 {[%clk 0:01:10.4]} 64... Bf2 {[%clk
0:00:45.9]} 65. Ke6 {[%clk 0:01:10.5]} 65... Be1 {[%clk 0:00:46.4]} 66. Ke5
{[%clk 0:01:11.9]} 66... Bd2 {[%clk 0:00:46.8]} 67. Ke4 {[%clk 0:01:12.1]} 67...
Bc1 {[%clk 0:00:46.8]} 68. Kd3 {[%clk 0:01:12.2]} 68... Ba3 {[%clk 0:00:45.7]}
69. Ne3 {[%clk 0:01:11.2]} 69... Kb6 {[%clk 0:00:45.7]} 70. Nc4+ {[%clk
0:01:12.2]} 70... Kxb5 {[%clk 0:00:47.2]} 71. Nxa3+ {[%clk 0:01:14.1]} 71... Kc5
{[%clk 0:00:49.1]} 72. Nc4 {[%clk 0:01:15.3]} 72... Kd5 {[%clk 0:00:51]} 1-0